{"text_format":"1","workbook":"xlsx","n_sheets":2,"sheets":["Volunteering 1945-2010","Chart"],"not_rendered":{"charts":2,"images":0,"macros":0,"external_links":4,"defined_names":16,"comments":0,"pivot_tables":0},"unopened":[{"sheet":"Chart","index":1,"reason":"not_a_worksheet"}],"bounds":{"document_bytes":16777216,"sheet_cells":100000,"rows_first":2000,"rows_last":500,"rows_between":2000,"halvings":0,"cell_chars":16384,"cell_head_chars":4096},"cells_cut":0,"cells_raw":0,"read":"whole","date_system":"1900"}

{"sheet":"Volunteering 1945-2010","index":0,"n_rows":13,"n_cols":32,"rows_kept":13,"cut":false,"hidden":false,"merged":[[0,0,0,3],[10,0,10,4],[11,0,11,4],[12,0,12,4]]}
["Figure 6.5. Volunteering in past month, according to various surveys, 1947-2010"]
[]
["Column1","Beveridge 1949","Morris 1969","General Household Survey 1973","Wolfenden 1976","Hatch 1976","General Household survey 1977","National Survey of Volunteering / Volunteer Centre / Social & Community Planning Research 1981","General Household Survey 1981","Charity Household Survey 1985-6","Charity Household Survey 1987","General Household Survey 1987","individual giving and volunteering survey 88-89","individual giving and volunteering survey 89-90","individual giving and volunteering survey 90-91","National Survey of Volunteering 1991","individual giving and volunteering survey 1992","General Household Survey 1992","individual giving and volunteering survey 1993","MORI 1994","MORI 1995","National Survey of Volunteering 1997","British Social Attitudes Survey 1998","Citizenship Survey 2001","Citizenship Survey 2003","Citizenship Survey 2005","Helping Out 2006-7","NfPsynergy 2007","Citizenship Survey 2007/8","Citizenship Survey 2008/9","Citizenship Survey 2009/10","Citienship survey 2010"]
[null,"Beveridge 1949","Morris 1969","GHS 1973","Wolfenden 1976","Hatch 1976","GHS 1977","NSV 1981","GHS 1981","CHS 1985-6","CHS 1987","GHS 1987","CHS 88-89","CHS 89-90","CHS 90-91","NSV 1991","CHS 1992","GHS 1992","CHS 1993","MORI 1994","MORI 1995","NSV 1997","BSAS 1998","CS 2001","CS 2003","CS 2005","HO 2006-7","NfPsynergy 2007","CS 2007/8","CS 2008/9","CS 2009/10","CS 2010"]
["Volunteering in past year  (% of total sample)",null,null,null,16.600000000000001,15.3,null,44,23,null,null,23,null,null,null,51,null,null,null,20,27,48,21.5,39,42,44,59,null,43,41,40,38]
[null,{"$f":"IF(ISBLANK(B5),NA(),B5)","v":{"$error":"#N/A"}},{"$f":"IF(ISBLANK(C5),NA(),C5)","v":{"$error":"#N/A"}},{"$error":"#N/A"},16.600000000000001,15.3,{"$error":"#N/A"},44,23,{"$error":"#N/A"},{"$error":"#N/A"},23,{"$error":"#N/A"},{"$error":"#N/A"},{"$error":"#N/A"},51,{"$error":"#N/A"},{"$error":"#N/A"},{"$error":"#N/A"},20,27,48,21.5,39,42,44,59,{"$error":"#N/A"},43,41,40,38]
["volunteering in past 3 months preceding interview",null,null,null,null,null,null,null,null,19,55,null,null,null,null,null,null,null,null,null,null,null,null,null,null,null,null,19]
["Volunteering in past month  (% of total sample)",33.299999999999997,7.7,7.4,null,5.2,10,27,null,14,44,null,30,29,34,31,26,24,21,null,null,29,null,27,28,29,39,null,27,26,25,24]
[null,{"$f":"IF(ISBLANK(B8),NA(),B8)","v":33.299999999999997},{"$f":"IF(ISBLANK(C8),NA(),C8)","v":7.7},{"$f":"IF(ISBLANK(D8),NA(),D8)","v":7.4},{"$error":"#N/A"},5.2,10,27,{"$error":"#N/A"},14,44,{"$error":"#N/A"},30,29,34,31,26,24,21,{"$error":"#N/A"},{"$error":"#N/A"},29,{"$error":"#N/A"},27,28,29,39,{"$error":"#N/A"},27,26,25,24]
[]
["Keys: GHS = General Household Survey; NSV = National Survey of Volunteering; CHS = Charity Household Survey; BSAS = British Social Attitudes Survey; HO = Helping Out; CS = Citizenship Survey"]
["Sources: Beveridge 1947: W. H. Beveridge, The Evidence for Voluntary Action (London, 1949) p. 33s; Morris 1969: M. Morris, Voluntary Work in the Welfare State (London, 1969) p. 252; 1973 "]
["GHS 1973: Social Trends 1975 p. 98; Wolfenden 1976: Committee on Voluntary Organisations and John Wolfenden, The Future of Voluntary Organisations: Report of the Wolfenden Committee (London, 1978): p. 35; Hatch 1976: Stephen Hatch, Voluntary Work: A Report of a Survey (Berkhamsted, 1978);; GHS 1977: S. Humble, Voluntary Action in the 1980s: A Summary of the Findings of a National Survey (London, 1982): 5; NSV 1981: Humble, Voluntary Action in the 1980s; GHS 1981: Social Trends 1984: 153s; CHS 1985-6 and CHS 1987: Charity Trends 1989: 12th edition; GHS 1987: The 1991 national survey of voluntary activity in the UK (Berkhamsted, 1993), p.19; CHS 88-93: Charity Trends 1995: p. 53; NSV 1991: The 1991 national Survey of Voluntary Activity in the UK; GHS 1992: Charity Trends 1997: p. 232; MORI 1994-95: Charity Trends 1996, p. 36; NSV 1997: National Survey of Volunteering 1997; BSAS 1998: Social Trends 30 (2000), p. 218; CS 2001-2010: Citizenship Survey data from: www.communities.gov.uk/communities/research/citizenshipsurvey; HO 2006-7: Helping Out: A National Survey of Volunteering and Charitable Giving (London, 2007); NfpSynergy 2007: ‘Who volunteers? Volunteering trends: 2000-2007; A briefing from nfpSynergy’, January 2008, available at: www.nfpsynergy.net/includes/documents/cm_docs/2008/v/volunteeringtrendsjan08.pdf "]